fUST/lending_fUST_20241120
["ID","MTS","AMOUNT","RATE_DAILY","PERIOD"]
[342747811,1732098677466,-500.0,0.00024931,7]
[342747812,1732098677476,-606.03,0.00024931,7]
[342747813,1732098677485,-975.02,0.00024931,7]
[342747814,1732098677495,-1001.2,0.00025,31]
[342747815,1732098677505,-1004.2,0.00025,31]
[342747816,1732098677515,-500.54,0.00025,2]
[342747817,1732098677526,-4000.0,0.00025,2]
[342747818,1732098677535,-2866.47606318,0.00025,2]
[342747819,1732098677545,-998.0,0.00025,2]
[342747820,1732098677554,-196.799999,0.00025,2]
[342747821,1732098677564,-300.0,0.00025,2]
[342747822,1732098677573,-300.0,0.00025,2]
[342747823,1732098677583,-272.599999,0.00025,2]
[342747824,1732098677709,-151.0,0.00025,2]
[342747825,1732098677732,-503.570534,0.00025,17]
[342747826,1732098677742,-303.14246574,0.00025,2]
[342747827,1732098677755,-303.16369506,0.00025,2]
[342747828,1732098677772,-2000.0,0.0002502,2]
[342747829,1732098677783,-1004.19949237,0.00025028,2]
[342747830,1732098677795,-300.0,0.000251,2]
[342747831,1732098677810,-300.0,0.000251,2]
[342747832,1732098677820,-1000.0,0.00025179,2]
[342747833,1732098677831,-1000.0,0.000252,2]
[342747834,1732098677840,-500.68329818,0.00025205,7]
[342747835,1732098677852,-500.0,0.00025205,7]
[342747836,1732098677861,-150.7734883,0.00025205,7]
[342747837,1732098677871,-500.0,0.00025205,7]
[342747838,1732098677882,-635.74,0.00025205,7]
[342747839,1732098677891,-616.79,0.00025205,7]
[342747840,1732098677901,-500.0,0.00025205,7]
[342747841,1732098677910,-648.76,0.00025205,7]
[342747842,1732098677920,-837.88,0.00025205,7]
[342747843,1732098677930,-500.0,0.00025205,7]
[342747844,1732098677940,-500.0,0.00025205,7]
[342747845,1732098677949,-614.76,0.00025205,7]
[342747846,1732098677959,-553.46,0.00025205,7]
[342747847,1732098677968,-1142.87,0.00025205,7]
[342747848,1732098677978,-500.0,0.00025205,7]
[342747849,1732098677988,-586.55,0.00025205,7]
[342747850,1732098677998,-500.0,0.00025205,7]
[342747851,1732098678007,-500.0,0.00025205,7]
[342747852,1732098678017,-500.0,0.00025205,7]
[342747853,1732098678029,-500.0,0.00025205,7]
[342747854,1732098678039,-518.86,0.00025205,7]
[342747855,1732098678049,-512.06,0.00025205,7]
[342747856,1732098678059,-500.0,0.00025205,7]
[342747857,1732098678069,-958.07,0.00025205,7]
[342747858,1732098678078,-500.0,0.00025205,7]
[342747859,1732098678088,-500.0,0.00025205,7]
[342747860,1732098678099,-275.87,0.00025205,2]
[342747861,1732098678109,-518.73,0.00025205,7]
[342747862,1732098678119,-1123.69,0.00025205,7]
[342747863,1732098678128,-500.0,0.00025205,7]
[342747864,1732098678138,-645.57,0.00025205,7]
[342747865,1732098678148,-500.0,0.00025205,7]
[342747866,1732098678158,-945.04,0.00025205,7]
[342747867,1732098678168,-500.0,0.00025205,7]
[342747868,1732098678178,-561.21,0.00025205,7]
[342747869,1732098678188,-599.35,0.00025205,7]
[342747870,1732098678198,-829.07,0.00025205,7]
[342747871,1732098678208,-500.0,0.00025205,7]
[342747872,1732098678218,-500.0,0.00025205,7]
[342747873,1732098678228,-838.19,0.00025205,7]
[342747874,1732098678238,-500.0,0.00025205,7]
[342747875,1732098678249,-1261.05,0.00025205,7]
[342747876,1732098678259,-500.0,0.00025205,7]
[342747877,1732098678269,-572.89,0.00025205,7]
[342747878,1732098678282,-618.44243205,0.00025205,7]
[342747879,1732098678291,-500.0,0.00025205,7]
[342747880,1732098678301,-500.0,0.00025205,7]
[342747881,1732098678311,-286.31579289,0.00025205,7]
[342747882,1732098678321,-500.0,0.00025205,7]
[342747883,1732098678331,-500.0,0.00025205,7]
[342747884,1732098678342,-802.01,0.00025205,7]
[342747885,1732098678352,-760.12,0.00025205,7]
[342747886,1732098678362,-774.31,0.00025205,7]
[342747887,1732098678372,-500.0,0.00025205,7]
[342747888,1732098678383,-618.19,0.00025205,7]
[342747889,1732098678393,-500.0,0.00025205,7]
[342747890,1732098678402,-500.0,0.00025205,7]
[342747891,1732098678412,-500.0,0.00025205,7]
[342747892,1732098678421,-366.62,0.00025205,7]
[342747893,1732098678431,-789.67,0.00025205,7]
[342747894,1732098678441,-711.02,0.00025205,7]
[342747895,1732098678451,-500.0,0.00025205,7]
[342747896,1732098678461,-523.39,0.00025205,7]
[342747897,1732098678471,-500.0,0.00025205,7]
[342747898,1732098678481,-992.86,0.00025205,7]
[342747899,1732098678491,-629.97,0.00025205,7]
[342747900,1732098678501,-500.0,0.00025205,7]
[342747901,1732098678510,-500.0,0.00025205,7]
[342747902,1732098678519,-500.0,0.00025205,7]
[342747903,1732098678529,-781.36,0.00025205,7]
[342747904,1732098678540,-500.0,0.00025205,7]
[342747905,1732098678549,-500.0,0.00025205,7]
[342747906,1732098678560,-901.62,0.00025205,7]
[342747907,1732098678570,-553.39,0.00025205,7]
[342747908,1732098678580,-500.0,0.00025205,7]
[342747909,1732098678590,-500.0,0.00025205,7]
[342747910,1732098678600,-503.54220474,0.00025205,7]
[342747911,1732098678610,-500.0,0.00025205,7]
[342747912,1732098678620,-500.0,0.00025205,7]
[342747913,1732098678630,-902.77,0.00025205,7]
[342747914,1732098678640,-500.0,0.00025205,7]
[342747915,1732098678650,-500.0,0.00025205,7]
[342747916,1732098678660,-500.0,0.00025205,7]
[342747917,1732098678670,-500.0,0.00025205,7]
[342747918,1732098678681,-602.4,0.00025205,7]
[342747919,1732098678691,-902.25,0.00025205,7]
[342747920,1732098678701,-578.43,0.00025205,7]
[342747921,1732098678710,-22918.44,0.00025205,7]
[342747922,1732098678720,-500.0,0.00025205,7]
[342747923,1732098678730,-2748.58,0.00025205,7]
[342747924,1732098678740,-500.0,0.00025205,7]
[342747925,1732098678750,-500.0,0.00025205,7]
[342747926,1732098678760,-500.0,0.00025205,7]
[342747927,1732098678771,-2295.85,0.00025205,7]
[342747928,1732098678784,-500.0,0.00025205,7]
[342747929,1732098678795,-500.0,0.00025205,7]
[342747930,1732098678807,-500.0,0.00025205,7]
[342747931,1732098678817,-500.0,0.00025205,7]
[342747932,1732098678828,-1877.29,0.00025205,7]
[342747933,1732098678839,-1194.38,0.00025205,7]
[342747934,1732098678849,-500.0,0.00025205,7]
[342747935,1732098678860,-739.28,0.00025205,7]
[342747936,1732098678870,-3097.05,0.00025205,7]
[342747937,1732098678881,-528.56,0.00025205,7]
[342747938,1732098678893,-924.07,0.00025205,7]
[342747939,1732098678903,-500.0,0.00025205,7]
[342747940,1732098678913,-1005.07,0.00025205,7]
[342747941,1732098678923,-500.0,0.00025205,7]
[342747942,1732098678934,-520.37,0.00025205,7]
[342747943,1732098678944,-656.47,0.00025205,7]
[342747944,1732098678955,-1122.57,0.00025205,7]
[342747945,1732098678965,-720.66,0.00025205,7]
[342747946,1732098678975,-500.0,0.00025205,7]
[342747947,1732098678986,-666.72,0.00025205,7]
[342747948,1732098678996,-911.96,0.00025205,7]
[342747949,1732098679007,-500.0,0.00025205,7]
[342747950,1732098679016,-500.0,0.00025205,7]
[342747951,1732098679028,-500.0,0.00025205,7]
[342747952,1732098679038,-500.0,0.00025205,7]
[342747953,1732098679048,-739.82,0.00025205,7]
[342747954,1732098679059,-500.0,0.00025205,7]
[342747955,1732098679068,-526.88,0.00025205,7]
[342747956,1732098679079,-808.24,0.00025205,7]
[342747957,1732098679089,-550.61,0.00025205,7]
[342747958,1732098679099,-628.93,0.00025205,7]
[342747959,1732098679109,-889.46,0.00025205,7]
[342747960,1732098679119,-608.25,0.00025205,7]
[342747961,1732098679129,-4981.89,0.00025205,7]
[342747962,1732098679139,-500.0,0.00025205,7]
[342747963,1732098679149,-584.96,0.00025205,7]
[342747964,1732098679159,-931.0,0.00025205,7]
[342747965,1732098679169,-500.0,0.00025205,7]
[342747966,1732098679178,-3228.47,0.00025205,7]
[342747967,1732098679188,-903.73,0.00025205,7]
[342747968,1732098679198,-500.0,0.00025205,7]
[342747969,1732098679211,-5887.59,0.00025205,7]
[342747970,1732098679227,-500.0,0.00025205,7]
[342747971,1732098679243,-500.0,0.00025205,7]
[342747972,1732098679256,-545.65,0.00025205,7]
[342747973,1732098679269,-527.75,0.00025205,7]
[342747974,1732098679285,-500.0,0.00025205,7]
[342747975,1732098679300,-2693.86,0.00025205,7]
[342747976,1732098679315,-308.73,0.00025205,7]
[342747977,1732098679329,-500.0,0.00025205,7]
[342747978,1732098679345,-571.31,0.00025205,7]
[342747979,1732098679362,-500.0,0.00025205,7]
[342747980,1732098679377,-500.0,0.00025205,7]
[342747981,1732098679391,-772.94,0.00025205,7]
[342747982,1732098679407,-1287.91,0.00025205,7]
[342747983,1732098679421,-3378.45,0.00025205,7]
[342747984,1732098679434,-477.98,0.00025205,7]
[342747985,1732098679446,-500.0,0.00025205,7]
[342747986,1732098679460,-720.6,0.00025205,7]
[342747987,1732098679475,-3743.65,0.00025205,7]
[342747988,1732098679489,-500.0,0.00025205,7]
[342747989,1732098679503,-606.03,0.00025205,7]
[342747990,1732098679517,-975.02,0.00025205,7]
[342747991,1732098679536,-201.49942855,0.00025216,2]
[342747992,1732098679548,-303.14246574,0.0002525,2]
[342747993,1732098679559,-303.16369506,0.0002525,2]
[342747994,1732098679570,-2752.74387725,0.00025255,3]
[342747995,1732098679584,-1023.4427403,0.00025255,3]
[342747996,1732098679599,-500.0,0.00025305,7]
[342747997,1732098679612,-587.0,0.00025305,2]
[342747998,1732098679623,-900.0,0.00025469,3]
[342747999,1732098679635,-838.59326805,0.00025479,2]
[342748000,1732098679650,-158.24950921,0.00025479,7]
[342748001,1732098679661,-500.0,0.00025479,7]
[342748002,1732098679672,-500.0,0.00025479,7]
[342748003,1732098679685,-635.74,0.00025479,7]
[342748004,1732098679697,-616.79,0.00025479,7]
[342748005,1732098679710,-500.0,0.00025479,7]
[342748006,1732098679722,-648.76,0.00025479,7]
[342748007,1732098679734,-837.88,0.00025479,7]
[342748008,1732098679747,-500.0,0.00025479,7]
[342748009,1732098679759,-529.07,0.00025479,7]
[342748010,1732098679772,-614.76,0.00025479,7]
[342748011,1732098679786,-553.46,0.00025479,7]
[342748012,1732098679800,-1142.87,0.00025479,7]
[342748013,1732098679815,-500.0,0.00025479,7]
[342748014,1732098679828,-586.55,0.00025479,7]
[342748015,1732098679840,-500.0,0.00025479,7]
[342748016,1732098679854,-500.0,0.00025479,7]
[342748017,1732098679866,-500.0,0.00025479,7]
[342748018,1732098679880,-500.0,0.00025479,7]
[342748019,1732098679891,-518.86,0.00025479,7]
[342748020,1732098679902,-512.06,0.00025479,7]
[342748021,1732098679914,-500.0,0.00025479,7]
[342748022,1732098679926,-958.07,0.00025479,7]
[342748023,1732098679937,-500.0,0.00025479,7]
[342748024,1732098679949,-500.0,0.00025479,7]
[342748025,1732098679962,-275.87,0.00025479,2]
[342748026,1732098679973,-518.73,0.00025479,7]
[342748027,1732098679986,-1123.69,0.00025479,7]
[342748028,1732098679998,-500.0,0.00025479,7]
[342748029,1732098680009,-645.57,0.00025479,7]
[342748030,1732098680022,-500.0,0.00025479,7]
[342748031,1732098680037,-945.04,0.00025479,7]
[342748032,1732098680048,-500.0,0.00025479,7]
[342748033,1732098680060,-561.21,0.00025479,7]
[342748034,1732098680072,-599.35,0.00025479,7]
[342748035,1732098680083,-829.07,0.00025479,7]
[342748036,1732098680095,-500.0,0.00025479,7]
[342748037,1732098680107,-500.0,0.00025479,7]
[342748038,1732098680117,-838.19,0.00025479,7]
[342748039,1732098680128,-500.0,0.00025479,7]
[342748040,1732098680140,-1261.05,0.00025479,7]
[342748041,1732098680151,-500.0,0.00025479,7]
[342748042,1732098680163,-572.89,0.00025479,7]
[342748043,1732098680174,-500.0,0.00025479,7]
[342748044,1732098680186,-500.0,0.00025479,7]
[342748045,1732098680197,-500.0,0.00025479,7]
[342748046,1732098680210,-500.0,0.00025479,7]
[342748047,1732098680220,-802.01,0.00025479,7]
[342748048,1732098680232,-760.12,0.00025479,7]
[342748049,1732098680243,-774.31,0.00025479,7]
[342748050,1732098680255,-500.0,0.00025479,7]
[342748051,1732098680266,-618.19,0.00025479,7]
[342748052,1732098680280,-500.0,0.00025479,7]
[342748053,1732098680292,-500.0,0.00025479,7]
[342748054,1732098680304,-500.0,0.00025479,7]
[342748055,1732098680315,-789.67,0.00025479,7]
[342748056,1732098680326,-711.02,0.00025479,7]
[342748057,1732098680338,-500.0,0.00025479,7]
[342748058,1732098680350,-523.39,0.00025479,7]
[342748059,1732098680362,-500.0,0.00025479,7]
[342748060,1732098680373,-992.86,0.00025479,7]
[342748061,1732098680385,-629.97,0.00025479,7]
[342748062,1732098680396,-500.0,0.00025479,7]
[342748063,1732098680408,-500.0,0.00025479,7]
[342748064,1732098680420,-500.0,0.00025479,7]
[342748065,1732098680432,-781.36,0.00025479,7]
[342748066,1732098680443,-500.0,0.00025479,7]
[342748067,1732098680455,-610.61107102,0.00025479,7]
[342748068,1732098680466,-901.62,0.00025479,7]
[342748069,1732098680477,-553.39,0.00025479,7]
[342748070,1732098680488,-500.0,0.00025479,7]
[342748071,1732098680499,-500.0,0.00025479,7]
[342748072,1732098680510,-500.0,0.00025479,7]
[342748073,1732098680522,-500.0,0.00025479,7]
[342748074,1732098680536,-902.77,0.00025479,7]
[342748075,1732098680547,-500.0,0.00025479,7]
[342748076,1732098680558,-500.0,0.00025479,7]
[342748077,1732098680569,-500.0,0.00025479,7]
[342748078,1732098680580,-500.0,0.00025479,7]
[342748079,1732098680592,-602.4,0.00025479,7]
[342748080,1732098680604,-902.25,0.00025479,7]
[342748081,1732098680616,-578.43,0.00025479,7]
[342748082,1732098680627,-22918.44,0.00025479,7]
[342748083,1732098680638,-500.0,0.00025479,7]
[342748084,1732098680649,-2748.58,0.00025479,7]
[342748085,1732098680660,-500.0,0.00025479,7]
[342748086,1732098680672,-521.9435881,0.00025479,7]
[342748087,1732098680684,-500.0,0.00025479,7]
[342748088,1732098680695,-2295.85,0.00025479,7]
[342748089,1732098680706,-549.63598928,0.00025479,7]
[342748090,1732098680718,-500.0,0.00025479,7]
[342748091,1732098680729,-500.0,0.00025479,7]
[342748092,1732098680739,-500.0,0.00025479,7]
[342748093,1732098680752,-1877.29,0.00025479,7]
[342748094,1732098680763,-1194.38,0.00025479,7]
[342748095,1732098680777,-548.89,0.00025479,7]
[342748096,1732098680789,-739.28,0.00025479,7]
[342748097,1732098680804,-3097.05,0.00025479,7]
[342748098,1732098680817,-528.56,0.00025479,7]
[342748099,1732098680829,-924.07,0.00025479,7]
[342748100,1732098680843,-500.0,0.00025479,7]
[342748101,1732098680854,-1005.07,0.00025479,7]
[342748102,1732098680867,-500.0,0.00025479,7]
[342748103,1732098680878,-520.37,0.00025479,7]
[342748104,1732098680891,-656.47,0.00025479,7]
[342748105,1732098680904,-1122.57,0.00025479,7]
[342748106,1732098680915,-720.66,0.00025479,7]
[342748107,1732098680927,-500.0,0.00025479,7]
[342748108,1732098680938,-911.96,0.00025479,7]
[342748109,1732098680950,-666.72,0.00025479,7]
[342748110,1732098680961,-500.0,0.00025479,7]
[342748111,1732098680972,-500.0,0.00025479,7]
[342748112,1732098680983,-492.15518121,0.00025479,7]
[342748113,1732098681226,-500.0,0.00025479,7]
[342748114,1732098681236,-739.82,0.00025479,7]
[342748115,1732098681246,-500.0,0.00025479,7]
[342748116,1732098681256,-526.88,0.00025479,7]
[342748117,1732098681266,-808.24,0.00025479,7]
[342748118,1732098681279,-550.61,0.00025479,7]
[342748119,1732098681289,-628.93,0.00025479,7]
[342748120,1732098681299,-889.46,0.00025479,7]
[342748121,1732098681309,-608.25,0.00025479,7]
[342748122,1732098681318,-4981.89,0.00025479,7]
[342748123,1732098681329,-500.0,0.00025479,7]
[342748124,1732098681338,-931.0,0.00025479,7]
[342748125,1732098681348,-584.96,0.00025479,7]
[342748126,1732098681357,-500.0,0.00025479,7]
[342748127,1732098681367,-3228.47,0.00025479,7]
[342748128,1732098681376,-903.73,0.00025479,7]
[342748129,1732098681387,-500.0,0.00025479,7]
[342748130,1732098681396,-5887.59,0.00025479,7]
[342748131,1732098681406,-577.48145084,0.00025479,7]
[342748132,1732098681414,-500.0,0.00025479,7]
[342748133,1732098681424,-545.65,0.00025479,7]
[342748134,1732098681433,-527.75,0.00025479,7]
[342748135,1732098681443,-500.0,0.00025479,7]
[342748136,1732098681452,-2693.86,0.00025479,7]
[342748137,1732098681461,-490.4115403,0.00025479,7]
[342748138,1732098681471,-571.31,0.00025479,7]
[342748139,1732098681480,-500.0,0.00025479,7]
[342748140,1732098681490,-213.32692536,0.00025479,7]
[342748141,1732098681499,-772.94,0.00025479,7]
[342748142,1732098681509,-1287.91,0.00025479,7]
[342748143,1732098681519,-3378.45,0.00025479,7]
[342748144,1732098681530,-500.0,0.00025479,7]
[342748145,1732098681540,-720.6,0.00025479,7]
[342748146,1732098681550,-3743.65,0.00025479,7]
[342748147,1732098681559,-418.41,0.00025479,7]
[342748148,1732098681569,-606.03,0.00025479,7]
[342748149,1732098681578,-975.02,0.00025479,7]
[342748150,1732098681587,-303.14246574,0.000255,2]
[342748151,1732098681598,-303.16369506,0.000255,2]
[342748152,1732098681609,-585.33102149,0.00025589,2]
[342748153,1732098681620,-2907.95793855,0.00025652,2]
[342748154,1732098681631,-1108.0,0.00025745,2]
[342748155,1732098681643,-530.0,0.00025745,2]
[342748156,1732098681654,-2383.0,0.00025745,2]
[342748157,1732098681665,-302.91203606,0.0002575,2]
[342748158,1732098681676,-303.16369506,0.0002575,2]
[342748159,1732098681686,-200.89715896,0.00025753,7]
[342748160,1732098681696,-500.0,0.00025753,7]
[342748161,1732098681706,-252.79181309,0.00025753,7]
[342748162,1732098681715,-500.0,0.00025753,7]
[342748163,1732098681725,-635.74,0.00025753,7]
[342748164,1732098681734,-616.79,0.00025753,7]
[342748165,1732098681745,-500.0,0.00025753,7]
[342748166,1732098681755,-648.76,0.00025753,7]
[342748167,1732098681764,-837.88,0.00025753,7]
[342748168,1732098681777,-500.0,0.00025753,7]
[342748169,1732098681787,-614.76,0.00025753,7]
[342748170,1732098681796,-553.46,0.00025753,7]
[342748171,1732098681808,-1142.87,0.00025753,7]
[342748172,1732098681817,-237.79241611,0.00025753,7]
[342748173,1732098681826,-586.55,0.00025753,7]
[342748174,1732098681835,-500.0,0.00025753,7]
[342748175,1732098681846,-500.0,0.00025753,7]
[342748176,1732098681854,-500.0,0.00025753,7]
[342748177,1732098681864,-500.0,0.00025753,7]
[342748178,1732098681874,-518.86,0.00025753,7]
[342748179,1732098681885,-512.06,0.00025753,7]
[342748180,1732098681895,-500.0,0.00025753,7]
[342748181,1732098681904,-958.07,0.00025753,7]
[342748182,1732098681914,-500.0,0.00025753,7]
[342748183,1732098681924,-500.0,0.00025753,7]
[342748184,1732098681933,-275.87,0.00025753,2]
[342748185,1732098681943,-518.73,0.00025753,7]
[342748186,1732098681953,-1123.69,0.00025753,7]
[342748187,1732098681963,-500.0,0.00025753,7]
[342748188,1732098681973,-645.57,0.00025753,7]
[342748189,1732098681983,-500.0,0.00025753,7]
[342748190,1732098681994,-945.04,0.00025753,7]
[342748191,1732098682003,-500.0,0.00025753,7]
[342748192,1732098682013,-561.21,0.00025753,7]
[342748193,1732098682022,-599.35,0.00025753,7]
[342748194,1732098682034,-829.07,0.00025753,7]
[342748195,1732098682044,-500.0,0.00025753,7]
[342748196,1732098682054,-442.24543152,0.00025753,7]
[342748197,1732098682064,-838.19,0.00025753,7]
[342748198,1732098682073,-500.0,0.00025753,7]
[342748199,1732098682083,-1261.05,0.00025753,7]
[342748200,1732098682094,-500.0,0.00025753,7]
[342748201,1732098682103,-572.89,0.00025753,7]
[342748202,1732098682114,-500.0,0.00025753,7]
[342748203,1732098682123,-500.0,0.00025753,7]
[342748204,1732098682133,-500.0,0.00025753,7]
[342748205,1732098682143,-500.0,0.00025753,7]
[342748206,1732098682153,-802.01,0.00025753,7]
[342748207,1732098682162,-760.12,0.00025753,7]
[342748208,1732098682172,-774.31,0.00025753,7]
[342748209,1732098682183,-500.0,0.00025753,7]
[342748210,1732098682193,-618.19,0.00025753,7]
[342748211,1732098682202,-500.0,0.00025753,7]
[342748212,1732098682212,-500.0,0.00025753,7]
[342748213,1732098682222,-500.0,0.00025753,7]
[342748214,1732098682232,-789.67,0.00025753,7]
[342748215,1732098682242,-711.02,0.00025753,7]
[342748216,1732098682252,-500.0,0.00025753,7]
[342748217,1732098682262,-523.39,0.00025753,7]
[342748218,1732098682272,-500.0,0.00025753,7]
[342748219,1732098682285,-992.86,0.00025753,7]
[342748220,1732098682296,-629.97,0.00025753,7]
[342748221,1732098682306,-500.0,0.00025753,7]
[342748222,1732098682316,-500.0,0.00025753,7]
[342748223,1732098682326,-228.57121019,0.00025753,7]
[342748224,1732098682336,-781.36,0.00025753,7]
[342748225,1732098682347,-500.0,0.00025753,7]
[342748226,1732098682357,-901.62,0.00025753,7]
[342748227,1732098682367,-553.39,0.00025753,7]
[342748228,1732098682378,-500.0,0.00025753,7]
[342748229,1732098682389,-500.0,0.00025753,7]
[342748230,1732098682399,-500.0,0.00025753,7]
[342748231,1732098682409,-589.25451252,0.00025753,7]
[342748232,1732098682419,-902.77,0.00025753,7]
[342748233,1732098682429,-500.0,0.00025753,7]
[342748234,1732098682440,-500.0,0.00025753,7]
[342748235,1732098682449,-500.0,0.00025753,7]
[342748236,1732098682459,-500.0,0.00025753,7]
[342748237,1732098682470,-602.4,0.00025753,7]
[342748238,1732098682479,-902.25,0.00025753,7]
[342748239,1732098682489,-578.43,0.00025753,7]
[342748240,1732098682499,-500.0,0.00025753,7]
[342748241,1732098682509,-2748.58,0.00025753,7]
[342748242,1732098682519,-22918.44,0.00025753,7]
[342748243,1732098682532,-500.0,0.00025753,7]
[342748244,1732098682542,-500.0,0.00025753,7]
[342748245,1732098682552,-2295.85,0.00025753,7]
[342748246,1732098682562,-500.0,0.00025753,7]
[342748247,1732098682572,-504.35212179,0.00025753,7]
[342748248,1732098682583,-500.0,0.00025753,7]
[342748249,1732098682595,-1877.29,0.00025753,7]
[342748250,1732098682605,-1194.38,0.00025753,7]
[342748251,1732098682616,-739.28,0.00025753,7]
[342748252,1732098682626,-3097.05,0.00025753,7]
[342748253,1732098682637,-528.56,0.00025753,7]
[342748254,1732098682646,-924.07,0.00025753,7]
[342748255,1732098682656,-500.0,0.00025753,7]
[342748256,1732098682666,-1005.07,0.00025753,7]
[342748257,1732098682676,-500.0,0.00025753,7]
[342748258,1732098682686,-520.37,0.00025753,7]
[342748259,1732098682697,-656.47,0.00025753,7]
[342748260,1732098682707,-1122.57,0.00025753,7]
[342748261,1732098682716,-720.66,0.00025753,7]
[342748262,1732098682726,-633.4,0.00025753,7]
[342748263,1732098682735,-911.96,0.00025753,7]
[342748264,1732098682745,-666.72,0.00025753,7]
[342748265,1732098682754,-500.0,0.00025753,7]
[342748266,1732098682763,-500.0,0.00025753,7]
[342748267,1732098682772,-500.0,0.00025753,7]
[342748268,1732098682787,-739.82,0.00025753,7]
[342748269,1732098682797,-500.0,0.00025753,7]
[342748270,1732098682813,-526.88,0.00025753,7]
[342748271,1732098682823,-808.24,0.00025753,7]
[342748272,1732098682832,-550.61,0.00025753,7]
[342748273,1732098682843,-628.93,0.00025753,7]
[342748274,1732098682852,-889.46,0.00025753,7]
[342748275,1732098682862,-608.25,0.00025753,7]
[342748276,1732098682872,-4981.89,0.00025753,7]
[342748277,1732098682883,-500.0,0.00025753,7]
[342748278,1732098682893,-931.0,0.00025753,7]
[342748279,1732098682903,-584.96,0.00025753,7]
[342748280,1732098682912,-500.0,0.00025753,7]
[342748281,1732098682923,-3228.47,0.00025753,7]
[342748282,1732098682932,-903.73,0.00025753,7]
[342748283,1732098682942,-500.0,0.00025753,7]
[342748284,1732098682952,-5887.59,0.00025753,7]
[342748285,1732098682962,-561.54,0.00025753,7]
[342748286,1732098682972,-545.65,0.00025753,7]
[342748287,1732098682983,-527.75,0.00025753,7]
[342748288,1732098682992,-500.0,0.00025753,7]
[342748289,1732098683002,-2693.86,0.00025753,7]
[342748290,1732098683012,-571.31,0.00025753,7]
[342748291,1732098683022,-241.52497712,0.00025753,7]
[342748292,1732098683035,-772.94,0.00025753,7]
[342748293,1732098683044,-1287.91,0.00025753,7]
[342748294,1732098683054,-3378.45,0.00025753,7]
[342748295,1732098683063,-720.6,0.00025753,7]
[342748296,1732098683072,-500.0,0.00025753,7]
[342748297,1732098683082,-3743.65,0.00025753,7]
[342748298,1732098683091,-606.03,0.00025753,7]
[342748299,1732098683100,-975.02,0.00025753,7]
[342748300,1732098683109,-20000.0,0.0002579,3]
[342748301,1732098683119,-20528.425,0.000259,2]
[342748302,1732098683128,-1396.13918022,0.00025979,9]
[342748303,1732098683137,-126129.4505933,0.00026,2]
[342748304,1732098683147,-11203.58059174,0.00026,7]
[342748305,1732098683155,-2520.0,0.00026,2]
[342748306,1732098683165,-465.0,0.00026,2]
[342748307,1732098683175,-159.0,0.00026,2]
[342748308,1732098683184,-303.16369506,0.00026,2]
[342748309,1732098683194,-465.0,0.00026023,2]
[342748310,1732098683203,-500.0,0.00026027,7]